bitfinex-derivatives/quotes_SOLF0:USTF0_20240920
["timestamp","ask_amount","ask_price","bid_price","bid_amount"]
[1726828592017,1658.56729999,150.52,150.51,13.5315]
[1726828592616,1580.29729999,150.52,150.51,13.5315]
[1726828595514,1502.02729999,150.52,150.51,13.5315]
[1726828600527,1423.75729999,150.52,150.51,13.5315]
[1726828601930,1402.9973,150.52,150.51,13.5315]
[1726828602431,1402.9973,150.52,150.51,16.87944767]
[1726828602626,1396.62729999,150.52,150.51,20.1745]
[1726828602831,1377.98729999,150.52,150.51,20.1745]
[1726828603221,1299.71729999,150.52,150.51,23.5676109]
[1726828604636,1297.59729999,150.52,150.51,23.5676109]
[1726828604832,1297.59729999,150.52,150.51,6.7146109]
[1726828605134,1297.59729999,150.52,150.51,16.9246109]
[1726828606430,1221.44729999,150.52,150.51,16.9246109]
[1726828606938,1221.44729999,150.52,150.51,6.7146109]
[1726828607129,1221.44729999,150.52,150.51,16.9246109]
[1726828607533,1219.32729999,150.52,150.51,16.9246109]
[1726828609332,1143.17729999,150.52,150.51,16.9246109]
[1726828609534,1125.71729999,150.52,150.51,16.9246109]
[1726828610540,1123.59729999,150.52,150.51,16.9246109]
[1726828611329,1117.14729999,150.52,150.51,13.5315]
[1726828611533,1117.14729999,150.52,150.51,16.84612293]
[1726828612437,1023.53729999,150.52,150.51,16.84612293]
[1726828615438,942.06729999,150.52,150.51,13.5315]
[1726828615838,23.53729999,150.52,150.51,13.5315]
[1726828616149,23.53729999,150.52,150.51,6.70298113]
[1726828616342,23.53729999,150.52,150.51,16.91298113]
[1726828618545,3.3196,150.6,150.55,3.3204]
[1726828618745,3.3196,150.6,150.56,10.21]
[1726828619446,13.5296,150.6,150.56,10.21]
[1726828619949,13.5296,150.6,150.55,10.21]
[1726828620143,3.3198,150.59,150.55,3.3205]
[1726828620343,10.21,150.59,150.54,10.21]
[1726828620851,3.3202,150.57,150.54,10.21]
[1726828621149,2.6968,150.56,150.54,10.21]
[1726828622348,2.6968,150.56,150.54,13.5308]
[1726828622846,2.6968,150.56,150.54,10.21]
[1726828623546,2.6968,150.56,150.55,10.21]
[1726828624441,2.6968,150.56,150.55,13.5306]
[1726828627145,2.6968,150.56,150.54,10.21]
[1726828627341,2.6968,150.56,150.51,136.24148113]
[1726828627647,2.6968,150.56,150.53,10.21]
[1726828628248,2.6968,150.56,150.53,13.5309]
[1726828628844,2.6968,150.56,150.54,13.5308]
[1726828629750,2.6968,150.56,150.51,136.24148113]
[1726828629953,10.21,150.53,150.51,3.38148113]
[1726828630151,10.21,150.53,150.49,10.21]
[1726828630350,13.5311,150.53,150.49,10.21]
[1726828630653,13.5311,150.53,150.49,13.57798631]
[1726828631053,10.21,150.53,150.49,16.89988631]
[1726828634256,13.5311,150.53,150.49,16.89988631]
[1726828636557,10.21,150.53,150.49,16.89988631]
[1726828638260,13.5311,150.53,150.49,16.89988631]
[1726828638666,10.21,150.53,150.49,3.36798631]
[1726828638863,13.5314,150.52,150.47,143.09]
[1726828639162,2.6672,150.51,150.48,3.322]
[1726828640764,10.21,150.5,150.47,132.88]
[1726828640961,10.21,150.49,150.47,128.6665]
[1726828641159,10.21,150.49,150.47,116.0257]
[1726828641357,1.3305,150.51,150.48,10.21]
[1726828643768,1.3305,150.51,150.48,13.5321]
[1726828646582,4.652,150.51,150.48,13.5321]
[1726828647980,13.5314,150.52,150.48,13.5321]
[1726828648382,1.2885,150.57,150.49,13.5319]
[1726828648573,3.321,150.54,150.5,10.21]
[1726828649778,10.21,150.55,150.45,2.6793]
[1726828649779,13.5307,150.55,150.45,2.6793]
[1726828649975,10.21,150.54,150.5,10.21]
[1726828650175,10.21,150.54,150.5,3.3216]
[1726828650379,10.21,150.53,150.49,10.21]
[1726828650577,13.5312,150.53,150.49,13.5318]
[1726828651884,13.5312,150.53,150.49,3.3218]
[1726828652073,13.5312,150.53,150.49,13.5318]
[1726828652381,13.5309,150.54,150.5,3.3217]
[1726828653283,3.3211,150.53,150.5,3.3217]
[1726828657577,13.5309,150.54,150.5,3.3217]
[1726828658184,3.3207,150.55,150.52,10.21]
[1726828658382,1.2885,150.57,150.53,10.21]
[1726828658979,10.21,150.6,150.54,10.21]
[1726828659283,10.21,150.61,150.56,10.21]
[1726828659478,3.3194,150.61,150.57,10.21]
[1726828660076,3.3195,150.6,150.58,3.3199]
[1726828660280,1.2894,150.63,150.58,3.25537248]
[1726828660485,10.21,150.61,150.58,3.25537248]
[1726828660881,3.3196,150.6,150.58,3.25537248]
[1726828661984,3.3196,150.6,150.58,6.57527248]
[1726828663089,10.21,150.62,150.58,6.57527248]
[1726828663090,3.3194,150.61,150.58,6.57527248]
[1726828664993,3.3192,150.62,150.58,13.46537248]
[1726828665389,3.3192,150.62,150.59,3.3196]
[1726828668195,3.319,150.63,150.61,10.21]
[1726828668389,1.3239,150.67,150.61,10.21]
[1726828668591,3.3186,150.65,150.62,13.5289]
[1726828668893,3.3186,150.65,150.62,10.21]
[1726828669285,10.21,150.68,150.64,13.5286]
[1726828669494,6.6325,150.75,150.64,13.5286]
[1726828669791,3.3181,150.67,150.64,13.5286]
[1726828669997,3.3181,150.67,150.64,16.81057]
[1726828670802,3.3177,150.69,150.66,13.528]
[1726828670991,10.21,150.7,150.66,10.21]
[1726828671385,3.3178,150.68,150.66,10.21]
[1726828672294,3.3176,150.69,150.66,10.21]
[1726828672692,3.3176,150.69,150.66,13.5281]
[1726828675797,3.3178,150.68,150.66,13.5281]
[1726828675994,10.21,150.69,150.64,3.28197]
[1726828676300,3.3184,150.66,150.63,10.21]
[1726828676500,6.6325,150.75,150.65,10.21]
[1726828676801,10.21,150.71,150.65,10.21]
[1726828676999,3.3177,150.68,150.65,10.21]
[1726828677200,3.3177,150.68,150.65,13.5283]
[1726828680401,3.318,150.67,150.64,13.5285]
[1726828680604,3.318,150.67,150.65,10.21]
[1726828681503,3.3178,150.68,150.65,13.5284]
[1726828681904,10.21,150.71,150.66,10.21]
[1726828682307,1.323,150.76,150.69,10.21]
[1726828682494,10.21,150.74,150.69,10.21]
[1726828682699,3.3172,150.71,150.7,10.21]
[1726828685404,1.323,150.76,150.7,10.21]
[1726828685604,3.3169,150.73,150.71,10.21]
[1726828685804,10.21,150.76,150.71,10.21]
[1726828686005,3.3167,150.73,150.71,13.527]
[1726828687503,3.3164,150.75,150.72,13.5268]
[1726828687702,3.3164,150.75,150.74,10.21]
[1726828688299,7.9317,150.83,150.74,10.21]
[1726828688506,7.9317,150.83,150.7,4.0626]
[1726828688507,10.21,150.81,150.75,10.21]
[1726828688810,10.21,150.81,150.75,13.5262]
[1726828689103,10.21,150.81,150.75,10.21]
[1726828689523,3.3159,150.77,150.75,10.21]
[1726828690724,3.3156,150.78,150.76,10.21]
[1726828691020,3.3156,150.78,150.77,10.21]
[1726828691424,3.3154,150.79,150.77,10.21]
[1726828691615,6.6272,150.88,150.78,10.21]
[1726828691814,6.6272,150.88,150.71,6.6342]
[1726828691815,6.6272,150.88,150.8,10.21]
[1726828692009,8.0109,150.93,150.81,10.21]
[1726828692220,8.0109,150.93,150.83,10.21]
[1726828692221,10.21,150.87,150.83,10.21]
[1726828692419,3.3144,150.84,150.83,10.21]
[1726828693016,3.3144,150.84,150.81,3.37789097]
[1726828693017,3.3147,150.82,150.81,13.58789097]
[1726828693224,10.21,150.84,150.74,132.76]
[1726828693416,10.21,150.83,150.78,10.21]
[1726828693616,3.3157,150.78,150.76,10.21]
[1726828693921,10.21,150.81,150.77,10.21]
[1726828694225,3.3155,150.79,150.77,10.21]
[1726828694715,3.3155,150.78,150.77,10.21]
[1726828694924,10.21,150.81,150.77,10.21]
[1726828695725,3.3155,150.78,150.77,10.21]
[1726828698416,3.3154,150.79,150.77,10.21]
[1726828698717,3.3154,150.79,150.78,10.21]
[1726828701132,3.3152,150.8,150.78,10.21]
[1726828701332,3.3152,150.8,150.79,10.21]
[1726828701832,1.3087,150.87,150.79,10.21]
[1726828702034,6.625,150.93,150.84,10.21]
[1726828702334,3.314,150.85,150.84,10.21]
[1726828703723,3.3143,150.84,150.81,3.3147]
[1726828703927,3.3143,150.84,150.83,10.21]
[1726828704332,11.32288231,150.93,150.83,10.21]
[1726828704333,3.3141,150.85,150.83,10.21]
[1726828704528,7.9304,150.93,150.85,10.21]
[1726828704723,3.3133,150.88,150.87,10.21]
[1726828705022,10.21,150.9,150.86,10.21]
[1726828706035,3.3136,150.87,150.86,10.21]
[1726828706730,10.21,150.87,150.81,10.21]
[1726828707123,3.3146,150.83,150.8,132.68]
[1726828707329,3.3146,150.83,150.82,10.21]
[1726828708430,3.30680551,150.96,150.8,132.68]
[1726828708623,10.21,150.88,150.82,10.21]
[1726828708826,3.3147,150.82,150.8,132.68]
[1726828709031,1.266,150.95,150.8,142.89]
[1726828709032,10.21,150.85,150.8,142.89]
[1726828709536,3.3149,150.81,150.8,142.89]
[1726828710038,3.3147,150.82,150.8,142.89]
[1726828710227,3.3147,150.82,150.81,10.21]
[1726828710429,3.3147,150.82,150.8,132.68]
[1726828710628,3.3147,150.82,150.8,142.89]
[1726828710833,10.21,150.82,150.8,132.68]
[1726828711430,13.5249,150.81,150.8,132.68]
[1726828712031,3.3149,150.81,150.8,132.68]
[1726828713330,10.21,150.88,150.8,142.89]
[1726828713537,10.21,150.88,150.82,10.21]
[1726828713836,3.314,150.86,150.82,13.5245]
[1726828714037,3.314,150.86,150.84,10.21]
[1726828714234,3.314,150.85,150.84,10.21]
[1726828714434,10.21,150.88,150.84,10.21]
[1726828714833,10.21,150.88,150.78,2.652]
[1726828714834,10.21,150.85,150.8,10.21]
[1726828715033,10.21,150.85,150.78,2.652]
[1726828715238,10.21,150.83,150.78,12.862]
[1726828715432,3.3147,150.82,150.79,13.5253]
[1726828715634,10.21,150.85,150.79,10.21]
[1726828716135,3.3148,150.82,150.79,3.3153]
[1726828716436,3.3149,150.81,150.78,5.9675]
[1726828717337,3.3148,150.82,150.78,2.652]
[1726828717541,3.3148,150.82,150.79,3.3152]
[1726828717937,3.3145,150.83,150.79,3.3152]
[1726828719239,3.3147,150.82,150.79,3.3152]
[1726828719842,15.92,150.87,150.79,3.3152]
[1726828719843,3.3145,150.83,150.79,3.3152]
[1726828720449,3.3147,150.82,150.79,3.3152]
[1726828720640,1.3249,150.88,150.8,3.3151]
[1726828720841,17.222,150.89,150.8,3.3151]
[1726828721042,3.3144,150.84,150.8,3.3151]
[1726828721640,3.3144,150.84,150.81,3.3148]
[1726828722042,3.3141,150.85,150.81,19.2348]
[1726828722241,1.302,150.89,150.82,3.3146]
[1726828722548,3.3139,150.86,150.81,15.92]
[1726828723043,15.92,150.93,150.84,3.3142]
[1726828723347,15.92,150.93,150.83,15.92]
[1726828724240,15.92,150.93,150.84,3.3141]
[1726828724445,15.92,150.9,150.81,15.92]
[1726828724849,15.92,150.88,150.8,3.315]
[1726828725045,15.92,150.9,150.81,15.92]
[1726828725347,15.92,150.9,150.82,3.3145]
[1726828725348,3.3141,150.85,150.82,3.3145]
[1726828725742,3.3142,150.84,150.82,3.3145]
[1726828727349,3.3142,150.84,150.81,19.2348]
[1726828728553,15.92,150.9,150.83,19.2344]
[1726828728848,15.92,150.9,150.83,15.92]
[1726828729046,3.3139,150.86,150.83,15.92]
[1726828729252,6.6239,150.95,150.83,15.92]
[1726828729550,3.3135,150.88,150.85,15.92]
[1726828729843,15.92,150.92,150.84,4.0174]
[1726828730047,15.92,150.92,150.83,15.92]
[1726828730248,3.3141,150.85,150.82,3.3145]
[1726828731646,3.3139,150.86,150.81,15.92]
[1726828731949,1.2913,150.91,150.83,15.92]
[1726828732145,3.3137,150.87,150.83,19.2343]
[1726828732350,3.3137,150.87,150.83,15.92]
[1726828732648,15.92,150.94,150.85,15.92]
[1726828733150,15.92,150.94,150.86,3.3137]
[1726828733450,15.92,150.95,150.86,3.25377521]
[1726828733654,3.3133,150.89,150.86,6.56747521]
[1726828733953,1.3131,150.96,150.87,15.92]
[1726828734250,1.3131,150.96,150.81,6.6298]
[1726828734251,3.3125,150.92,150.89,19.2329]
[1726828735245,1.3131,150.96,150.88,3.23852728]
[1726828735246,4.6249,150.96,150.92,3.3124]
[1726828735445,1.3131,150.96,150.89,1.2996]
[1726828735644,1.3131,150.96,150.89,4.58121925]
[1726828736145,15.92,150.92,150.85,3.27499731]
[1726828736351,15.92,150.92,150.83,15.92]
[1726828736949,3.3135,150.88,150.83,19.2344]
[1726828737653,3.3136,150.87,150.83,19.2344]
[1726828738054,15.92,150.92,150.83,19.2344]
[1726828738652,3.3135,150.88,150.83,19.2344]
[1726828738851,15.92,150.92,150.83,15.92]
[1726828739250,15.92,150.92,150.84,3.3142]
[1726828739745,15.92,150.92,150.85,3.23376147]
[1726828739951,15.92,150.92,150.83,15.92]
[1726828740151,15.92,150.9,150.82,1.3258]
[1726828740549,1.3169,150.89,150.82,1.3258]
[1726828742860,15.92,150.86,150.8,132.62]
[1726828743561,1.2733,150.85,150.75,15.92]
[1726828744261,1.2733,150.85,150.77,15.92]
[1726828744458,3.3148,150.82,150.79,3.3152]
[1726828744650,3.3148,150.82,150.78,3.33134049]
[1726828745155,3.3149,150.81,150.78,6.64684049]
[1726828746262,1.2733,150.85,150.79,3.3153]
[1726828746463,1.2733,150.85,150.78,3.33134049]
[1726828746762,3.3149,150.82,150.78,6.64684049]
[1726828746965,1.2733,150.85,150.78,6.64684049]
[1726828747152,1.2733,150.85,150.78,3.33134049]
[1726828747351,3.315,150.81,150.78,3.33134049]
[1726828748657,3.315,150.81,150.77,19.2356]
[1726828749161,3.315,150.81,150.77,22.50028179]
[1726828749461,3.315,150.81,150.78,3.3155]
[1726828750061,3.315,150.81,150.77,19.18468179]
[1726828750463,3.315,150.81,150.77,22.50038179]
[1726828750763,3.3148,150.82,150.77,19.18468179]
[1726828751057,3.3148,150.82,150.78,3.3154]
[1726828752263,3.315,150.81,150.77,22.50038179]
[1726828752866,3.3153,150.8,150.77,19.18468179]
[1726828754164,1.3812,150.88,150.79,15.92]
[1726828754776,1.3812,150.88,150.79,19.2352]
[1726828755272,3.3146,150.83,150.79,19.2352]
[1726828755768,17.3012,150.88,150.77,19.18468179]
[1726828756067,17.3012,150.88,150.77,22.50038179]
[1726828756272,15.92,150.86,150.77,22.50038179]
[1726828756473,15.92,150.86,150.77,3.26468179]
[1726828756669,15.92,150.86,150.76,3.3158]
[1726828756874,3.3154,150.79,150.77,3.29000252]
[1726828757471,3.3152,150.8,150.77,6.60580252]
[1726828757666,3.3152,150.8,150.77,3.3158]
[1726828758079,3.3152,150.8,150.76,3.3159]
[1726828758274,17.3012,150.88,150.77,15.92]
[1726828758476,15.92,150.87,150.77,19.18148607]
[1726828759073,3.3151,150.8,150.77,22.49708607]
[1726828760174,3.3151,150.8,150.77,19.18148607]
[1726828762277,3.3151,150.8,150.77,22.49718607]
[1726828762987,3.3151,150.8,150.77,19.18148607]
[1726828763883,3.3151,150.8,150.79,10.19]
[1726828767984,3.3151,150.8,150.77,3.26148607]
[1726828768185,3.3154,150.79,150.76,3.3159]
[1726828768481,10.19,150.81,150.77,3.24720394]
[1726828768685,3.3157,150.78,150.76,10.19]
[1726828768880,3.3157,150.78,150.77,3.25516439]
[1726828772487,10.19,150.81,150.77,3.25516439]
[1726828773388,3.3155,150.79,150.78,10.19]
[1726828773583,6.6271,150.88,150.79,10.19]
[1726828773792,6.6271,150.88,150.82,10.19]
[1726828774091,6.6271,150.88,150.82,13.57684366]
[1726828774092,3.3144,150.83,150.82,13.57684366]
[1726828774793,3.3144,150.83,150.82,10.19]
[1726828776489,10.19,150.85,150.74,4.1626]
[1726828776690,10.19,150.85,150.79,10.19]
[1726828776890,10.19,150.85,150.8,3.3423932]
[1726828777396,10.19,150.85,150.8,13.5323932]
[1726828777895,10.19,150.85,150.8,10.19]
[1726828777896,3.3149,150.81,150.8,10.19]
[1726828779100,3.3151,150.8,150.79,13.53593101]
[1726828779296,3.3151,150.8,150.79,3.34593101]
[1726828779496,3.3151,150.8,150.79,10.19]
[1726828779691,3.3151,150.8,150.79,13.55980683]
[1726828781997,7.9416,150.88,150.79,13.55980683]
[1726828782198,10.19,150.87,150.82,10.19]
[1726828782389,3.3144,150.83,150.82,10.19]
[1726828783088,3.3144,150.83,150.82,13.56434158]
[1726828783896,3.3144,150.83,150.82,3.37434158]
[1726828784096,1.3129,150.91,150.82,10.19]
[1726828784296,11.5029,150.91,150.85,10.19]
[1726828784691,3.3137,150.87,150.85,10.19]
[1726828785108,11.5029,150.91,150.85,13.566768]
[1726828785109,3.3138,150.86,150.85,13.566768]
[1726828785800,3.3138,150.86,150.85,10.19]
[1726828789601,3.3136,150.87,150.85,10.19]
[1726828790499,3.3136,150.87,150.84,6.58310586]
[1726828790695,3.3136,150.87,150.86,10.19]
[1726828791393,3.3135,150.88,150.86,10.19]
[1726828792005,1.3939,150.95,150.87,10.19]
[1726828792208,10.19,150.93,150.89,10.19]
[1726828792803,3.3129,150.9,150.89,10.19]
[1726828794409,3.3128,150.91,150.89,10.19]
[1726828794707,3.3128,150.91,150.9,10.19]
[1726828795705,3.3128,150.91,150.9,13.51106801]
[1726828797314,3.3126,150.92,150.9,13.51106801]
[1726828797513,3.3126,150.92,150.9,16.82396801]
[1726828797812,2.705,150.95,150.91,10.19]
[1726828798116,10.19,150.98,150.93,10.19]
[1726828798608,3.312,150.94,150.93,10.19]
[1726828798814,10.19,150.97,150.92,3.29654289]
[1726828799017,10.19,150.96,150.92,3.29654289]
[1726828799312,3.3124,150.93,150.92,3.29654289]
[1726828799507,10.19,150.94,150.89,10.19]
[1726828800006,3.3128,150.91,150.89,10.19]
[1726828800617,10.19,150.95,150.9,10.19]
[1726828801814,3.3126,150.92,150.9,10.19]
[1726828802013,3.3126,150.92,150.89,3.3131]
[1726828802318,18.5309,150.99,150.91,3.3127]
[1726828802617,18.5309,150.99,150.92,3.27986888]
[1726828803116,3.3122,150.94,150.92,3.27986888]
[1726828803919,2.6109,150.99,150.92,15.92]
[1726828804118,1.2917,150.99,150.94,15.92]
[1726828804319,17.1867,151.04,150.94,15.92]
[1726828804511,2.39082928,151.03,150.94,15.92]
[1726828804715,3.3111,150.99,150.95,19.2316]
[1726828804917,3.3111,150.99,150.95,15.92]
[1726828805118,1.4015,151.03,150.95,15.92]
[1726828805317,1.4015,151.03,150.96,3.32626151]
[1726828805510,1.4015,151.03,150.95,15.92]
[1726828805817,15.92,151.02,150.92,19.9179]
[1726828806018,15.92,151.02,150.92,23.23124077]
[1726828806617,3.3115,150.97,150.94,3.3119]
[1726828806920,1.4015,151.03,150.92,23.23124077]
[1726828807220,3.3113,150.98,150.95,19.2318]
[1726828808020,3.3114,150.97,150.95,19.2318]
[1726828808216,1.4015,151.03,150.95,19.2318]
[1726828808615,15.92,151.02,150.92,7.31124077]
[1726828808816,15.92,151.02,150.92,23.23124077]
[1726828809215,3.3119,150.95,150.92,26.54354077]
[1726828809621,3.3117,150.96,150.93,3.3122]
[1726828810120,3.3117,150.96,150.94,3.312]
[1726828810314,3.3115,150.97,150.94,3.312]
[1726828810923,3.3116,150.96,150.93,19.2321]
[1726828811122,17.3215,151.03,150.95,15.92]
[1726828811323,1.4015,151.03,150.95,15.92]
[1726828811518,1.4015,151.03,150.97,15.92]
[1726828812021,3.3108,151.0,150.97,19.2313]
[1726828812217,3.3108,151.0,150.97,15.92]
[1726828812422,3.3103,151.02,150.99,19.2308]
[1726828812624,3.3103,151.02,150.99,15.92]
[1726828813026,3.3102,151.03,150.99,15.92]
[1726828813229,17.2276,151.07,151.0,3.25315377]
[1726828813626,17.2276,151.07,151.0,6.56375377]
[1726828815032,3.3104,151.02,151.0,3.25315377]
[1726828816928,25.8418,151.16,151.0,3.25315377]
[1726828816929,8.0167,151.15,151.01,15.92]
[1726828817224,8.0167,151.15,151.06,15.92]
[1726828817225,0.98964019,151.14,151.06,15.92]
[1726828817430,0.98964019,151.14,151.06,19.2293]
[1726828817431,3.3088,151.09,151.06,19.2293]
[1726828817822,3.3088,151.09,151.06,15.92]
[1726828818831,3.3088,151.09,151.06,19.2292]
[1726828820134,10.6848,151.15,151.06,15.92]
[1726828820334,26.6048,151.15,151.06,15.92]
[1726828820531,0.98971553,151.14,151.06,15.92]
[1726828820731,3.3091,151.08,151.06,15.92]
[1726828823835,6.6156,151.14,151.02,132.48]
[1726828824036,15.92,151.12,151.03,15.92]
[1726828824231,15.92,151.12,151.03,19.23]
[1726828824928,15.92,151.12,151.02,132.48]
[1726828825127,6.6156,151.14,151.04,15.92]
[1726828825128,22.5356,151.14,151.04,15.92]
[1726828825334,3.3091,151.08,151.06,15.92]
[1726828825534,22.5356,151.14,151.06,15.92]
[1726828825734,0.98973523,151.13,151.06,15.92]
[1726828825935,0.98973523,151.13,151.06,19.2293]
[1726828826234,22.5356,151.14,151.06,19.2293]
[1726828826436,3.309,151.08,151.06,15.92]
[1726828827837,3.3089,151.09,151.06,15.92]
[1726828828641,3.3089,151.09,151.06,19.2293]
[1726828828941,4.0697,151.15,151.08,15.92]
[1726828829443,4.0697,151.15,151.06,15.92]
[1726828829844,4.0697,151.15,151.06,19.2294]
[1726828830046,3.3088,151.09,151.06,15.92]
[1726828831643,3.3088,151.09,151.07,3.3091]
[1726828831846,4.0697,151.15,151.03,132.46]
[1726828832146,15.92,151.13,151.04,15.92]
[1726828832446,15.92,151.11,151.03,132.46]
[1726828832948,3.3098,151.05,151.03,132.46]
[1726828833340,3.3098,151.04,151.03,132.46]
[1726828840454,3.3101,151.03,151.01,4.6499]
[1726828842046,3.3099,151.04,151.01,4.6499]
[1726828842654,22.5363,151.12,151.02,15.92]
[1726828842847,6.6163,151.12,151.04,15.92]
[1726828843048,6.6163,151.12,151.06,15.92]
[1726828843454,15.92,151.14,151.06,15.92]
[1726828843654,3.3089,151.09,151.06,19.2293]
[1726828844057,3.3089,151.09,151.07,15.92]
[1726828844255,3.3089,151.09,151.07,19.229]
[1726828844456,2.6681,151.15,151.08,3.25310158]
[1726828844656,2.6681,151.15,151.09,15.92]
[1726828844856,2.6681,151.15,151.11,15.92]
[1726828845160,3.308,151.13,151.11,15.92]
[1726828845752,18.5577,151.19,151.11,19.2282]
[1726828846159,2.6377,151.19,151.11,15.92]
[1726828846358,2.6377,151.19,151.13,15.92]
[1726828846763,3.3074,151.16,151.13,15.92]
[1726828846955,2.6377,151.19,151.13,15.92]
[1726828847361,3.3076,151.14,151.13,15.92]
[1726828847563,18.5577,151.19,151.11,15.92]
[1726828847761,3.3077,151.14,151.11,15.92]
[1726828848465,3.3077,151.14,151.11,19.2283]
[1726828848759,3.3077,151.14,151.11,15.92]
[1726828849868,3.3079,151.13,151.11,15.92]
[1726828851466,3.3077,151.14,151.11,19.2282]
[1726828851662,2.6377,151.19,151.11,15.92]
[1726828852364,1.3003,151.19,151.11,15.92]
[1726828852567,3.3076,151.15,151.12,3.308]
[1726828853759,3.3076,151.15,151.14,15.92]
[1726828855566,3.3076,151.15,151.12,3.308]
[1726828855763,3.3077,151.14,151.12,15.92]
[1726828856364,17.1888,151.22,151.12,19.228]
[1726828856565,0.99127941,151.21,151.14,15.92]
[1726828856768,3.307,151.17,151.16,15.92]
[1726828857170,1.3039,151.23,151.16,15.92]
[1726828857374,3.3069,151.18,151.16,15.92]
[1726828857868,3.3069,151.18,151.16,19.2272]
[1726828858068,3.3067,151.19,151.17,3.2817078]
[1726828858265,1.3272,151.24,151.18,15.92]
[1726828858464,3.3063,151.21,151.19,3.34425119]
[1726828859064,15.92,151.27,151.19,3.34425119]
[1726828859261,0.99152642,151.26,151.19,3.34425119]
[1726828859466,0.99152642,151.26,151.16,23.2778]
[1726828859665,3.3067,151.19,151.16,23.2778]
[1726828859865,3.3067,151.19,151.17,3.30752947]
[1726828860167,2.5868,151.28,151.07,109.60890615]
[1726828860361,15.92,151.23,151.14,15.92]
[1726828860574,2.6471,151.22,151.14,15.92]
[1726828860761,2.6471,151.22,151.13,3.38757969]
[1726828861065,15.92,151.19,151.11,15.92]
[1726828861267,6.6124,151.21,151.11,19.19312772]
[1726828861466,19.8648,151.22,151.13,15.92]
[1726828861775,19.8648,151.22,151.1,1.3661]
[1726828861776,15.92,151.18,151.1,1.3661]
[1726828862680,3.3082,151.12,151.1,1.3661]
[1726828862979,3.9448,151.22,151.11,15.92]
[1726828863270,0.99130913,151.21,151.13,15.92]
[1726828863474,19.8648,151.22,151.13,15.92]
[1726828864069,19.8648,151.22,151.09,3.3660786]
[1726828864267,0.99127483,151.21,151.05,1.328]
[1726828864472,3.3086,151.1,151.06,19.2293]
[1726828864663,15.92,151.15,151.06,19.2293]
[1726828864867,15.92,151.17,151.07,15.92]
[1726828865065,3.3085,151.1,151.07,19.229]
[1726828866264,1.2627,151.22,151.09,15.92]
[1726828866468,1.2627,151.22,151.13,15.92]
[1726828866667,3.3068,151.18,151.14,3.3075]
[1726828866973,1.2627,151.22,151.15,15.92]
[1726828867371,3.3068,151.18,151.15,19.2273]
[1726828868268,1.2627,151.22,151.15,19.2273]
[1726828868269,3.3066,151.19,151.15,19.2273]
[1726828869179,9.95145687,151.31,151.17,15.92]
[1726828869376,15.92,151.28,151.17,15.92]
[1726828869571,15.92,151.28,151.18,3.3067]
[1726828870081,3.306,151.22,151.18,3.3067]
[1726828871367,3.3058,151.23,151.19,19.2265]
[1726828872366,3.3058,151.23,151.19,15.92]
[1726828873075,15.92,151.28,151.19,15.92]
[1726828873677,3.3063,151.21,151.19,15.92]